lending/lending_fUSD_20251018
["ID","MTS","AMOUNT","RATE_DAILY","PERIOD"]
[391777984,1760800232500,-215.38971724,0.000241,2]
[391777985,1760800232509,-502.971084,0.00025576,2]
[391777986,1760800232519,-210.04,0.00026676,2]
[391777987,1760800232531,-250.0,0.00027917,2]
[391777988,1760800232541,-166.66,0.00028549,30]
[391777989,1760800232551,-150.0,0.00028565,2]
[391777990,1760800232561,-2546.0,0.00028566,2]
[391777991,1760800232571,-571.3327822,0.00028566,2]
[391777992,1760800232583,-330.6672178,0.00028566,2]
[391777993,1760800232592,-1183.0,0.00028566,2]
[391777994,1760800232602,-951.4576222,0.00029009,2]
[391777995,1760800232613,-3469.52215,0.00029009,2]
[391777996,1760800232625,-646.21618259,0.00029009,2]
[391777997,1760800232636,-675.0,0.00029009,2]
[391777998,1760800232648,-1040.32404521,0.00029009,2]
[391777999,1760800232658,-34.89595018,0.00029009,10]
[391778000,1760800232671,-6125.07404982,0.00029009,10]
[391778001,1760800232686,-80.12532062,0.00029068,2]
[391778002,1760800237871,-1121.9,0.00029068,2]
[391778003,1760800237883,-754.56966197,0.00029068,2]
[391778004,1760800237909,-633.40501741,0.00029068,2]
[391778005,1760800237920,-6437.0,0.00029068,2]
[391778006,1760800237931,-4483.82,0.00029068,2]
[391778007,1760800237941,-557.0,0.00029068,2]
[391778008,1760800237951,-166.66,0.0002915,30]
[391778009,1760800237961,-500.0,0.0002945,5]
[391778010,1760800237971,-158.54,0.00029596,30]
[391778011,1760800237980,-166.66,0.00029751,30]
[391778012,1760800237990,-150.0,0.0002991,2]
[391778013,1760800238000,-475.74147678,0.00030051,2]
[391778014,1760800238010,-372.1435,0.00030162,2]
[391778015,1760800238020,-178.14,0.00030164,2]
[391778016,1760800238030,-200.0,0.00030177,2]
[391778017,1760800238040,-1439.312,0.00030177,25]
[391778018,1760800238050,-500.0,0.00030296,2]
[391778019,1760800238060,-500.0,0.00030296,2]
[391778020,1760800238070,-500.0,0.00030296,2]
[391778021,1760800238080,-310.24812383,0.00030296,2]
[391778022,1760800238090,-500.0,0.00030296,2]
[391778023,1760800238100,-500.0,0.00030296,2]
[391778024,1760800238112,-500.0,0.00030296,2]
[391778025,1760800238122,-500.0,0.00030296,2]
[391778026,1760800238132,-500.0,0.00030296,2]
[391778027,1760800238142,-500.0,0.00030296,2]
[391778028,1760800238152,-500.0,0.00030296,2]
[391778029,1760800238162,-500.0,0.00030296,2]
[391778030,1760800238172,-500.0,0.00030296,2]
[391778031,1760800238182,-413.53229058,0.00030296,2]
[391778032,1760800238195,-86.46770942,0.00030296,2]
[391778033,1760800238204,-500.0,0.00030296,2]
[391778034,1760800238214,-500.0,0.00030296,2]
[391778035,1760800238224,-236.80422766,0.00030296,2]
[391778036,1760800238240,-345.43318151,0.00030296,2]
[391778037,1760800238250,-3408.0,0.00030297,2]
[391778038,1760800238260,-1267.0,0.00030297,2]
[391778039,1760800238269,-571.0,0.00030297,2]
[391778040,1760800238279,-1293.78,0.00030297,2]
[391778041,1760800238289,-503.884,0.00030297,2]
[391778042,1760800238298,-1589.0,0.00030297,2]
[391778043,1760800238307,-817.0,0.00030297,2]
[391778044,1760800238317,-166.66,0.00030352,30]
[391778047,1760800238327,-564.5906016,0.00030353,2]
[391778048,1760800238336,-751.54076081,0.00030652,2]
[391778049,1760800238409,-43751.79923919,0.00030652,2]
[391778050,1760800238419,-500.0,0.00030712,7]
[391778051,1760800238429,-431.91018216,0.00030824,2]
[391778052,1760800238440,-2500.0,0.00030886,2]
[391778053,1760800238449,-500.0,0.00030904,2]
[391778054,1760800238458,-159.25312219,0.00030905,2]
[391778055,1760800238468,-1000.0,0.00030906,2]
[391778056,1760800238477,-1000.0,0.00030906,2]
[391778057,1760800238487,-1000.0,0.00030906,2]
[391778058,1760800238496,-3000.0,0.00030906,2]
[391778059,1760800238506,-1000.0,0.00030906,2]
[391778060,1760800238515,-3000.0,0.00030906,2]
[391778061,1760800238524,-1000.0,0.00030906,2]
[391778062,1760800238534,-3000.0,0.00030906,2]
[391778063,1760800238543,-233.00554659,0.00030906,2]
[391778064,1760800238553,-492.2403524,0.00030906,2]
[391778065,1760800238562,-1000.0,0.00030906,2]
[391778066,1760800238572,-1000.0,0.00030906,2]
[391778067,1760800238581,-250.0,0.00030906,2]
[391778068,1760800238591,-351.40737607,0.00030906,2]
[391778069,1760800238600,-1000.0,0.00030923,2]
[391778070,1760800238610,-69056.8763,0.00030924,2]
[391778071,1760800238620,-2821.5947942,0.00030924,2]
[391778072,1760800238630,-166.66,0.00030953,30]
[391778073,1760800238640,-537.95658144,0.00030973,5]
[391778074,1760800238650,-500.1177526,0.00030973,5]
[391778075,1760800238660,-300.0,0.00030973,5]
[391778076,1760800238670,-500.0,0.00030986,7]
[391778077,1760800238679,-1000.0,0.00030986,7]
[391778078,1760800238690,-431.91018212,0.00031006,2]
[391778079,1760800238700,-2277.70742116,0.00031018,2]
[391778080,1760800238713,-1422.41859326,0.00031018,2]
[391778081,1760800238725,-613.52398558,0.00031018,2]
[391778082,1760800238734,-500.0,0.00031023,2]
[391778083,1760800238744,-500.0,0.00031023,2]
[391778084,1760800238754,-500.0,0.00031023,2]
[391778085,1760800238764,-308.67956003,0.00031023,2]
[391778086,1760800238774,-500.0,0.00031023,2]
[391778087,1760800238786,-500.0,0.00031023,2]
[391778088,1760800238796,-500.0,0.00031023,2]
[391778089,1760800238806,-500.0,0.00031023,2]
[391778090,1760800238816,-500.0,0.00031023,2]
[391778091,1760800238827,-1000.0,0.00031104,2]
[391778092,1760800238836,-500.0,0.00031123,2]
[391778093,1760800238846,-500.0,0.00031123,2]
[391778094,1760800238856,-500.0,0.00031123,2]
[391778095,1760800238869,-500.0,0.00031123,2]
[391778096,1760800238878,-628.77,0.00031123,2]
[391778097,1760800238889,-168.62823215,0.00031123,2]
[391778098,1760800238899,-500.0,0.00031123,2]
[391778099,1760800238909,-540.7,0.00031123,2]
[391778100,1760800238919,-500.0,0.00031123,2]
[391778101,1760800238930,-341.65327034,0.00031123,2]
[391778102,1760800238940,-500.0,0.00031123,2]
[391778103,1760800238951,-500.0,0.00031123,2]
[391778104,1760800238961,-500.0,0.00031123,2]
[391778105,1760800238971,-1578.25886756,0.00031123,2]
[391778106,1760800240037,-2894.36113244,0.00031123,2]
[391778107,1760800240047,-152.31303037,0.00031123,2]
[391778108,1760800240059,-347.68696963,0.00031123,2]
[391778109,1760800240069,-500.0,0.00031123,2]
[391778110,1760800240078,-500.0,0.00031123,2]
[391778111,1760800240088,-152.00676189,0.00031123,2]
[391778112,1760800240098,-443.21330188,0.00031124,2]
[391778113,1760800240109,-1817.9018559,0.00031124,2]
[391778114,1760800240121,-7067.73446767,0.00031124,2]
[391778115,1760800240132,-6019.10037455,0.00031124,2]
[391778116,1760800240142,-2002.95,0.00031144,2]
[391778117,1760800240152,-431.91018212,0.00031189,2]
[391778118,1760800240162,-500.0,0.00031296,2]
[391778119,1760800240172,-931.21279852,0.00031296,2]
[391778120,1760800240183,-1405.79720148,0.00031296,2]
[391778121,1760800240192,-500.0,0.00031296,2]
[391778122,1760800240202,-500.0,0.00031296,2]
[391778123,1760800240211,-500.0,0.00031296,2]
[391778124,1760800240221,-500.0,0.00031296,2]
[391778125,1760800240231,-500.0,0.00031297,2]
[391778126,1760800240240,-500.0,0.00031297,2]
[391778127,1760800240250,-500.0,0.00031297,2]
[391778128,1760800240259,-500.0,0.00031297,2]
[391778129,1760800240268,-500.0,0.00031297,2]
[391778130,1760800240277,-500.0,0.00031297,2]
[391778131,1760800240291,-431.91018212,0.00031371,2]
[391778132,1760800240300,-500.0,0.00031397,2]
[391778133,1760800240309,-500.0,0.00031397,2]
[391778134,1760800240319,-500.0,0.00031397,2]
[391778135,1760800240328,-628.77,0.00031397,2]
[391778136,1760800240338,-133.23926121,0.00031397,2]
[391778137,1760800240353,-366.76073879,0.00031397,2]
[391778138,1760800240362,-540.7,0.00031397,2]
[391778139,1760800240372,-500.0,0.00031397,2]
[391778140,1760800240381,-500.0,0.00031397,2]
[391778141,1760800240391,-4472.62,0.00031397,2]
[391778142,1760800240400,-500.0,0.00031397,2]
[391778143,1760800240410,-500.0,0.00031397,2]
[391778144,1760800240419,-804.73936464,0.00031427,2]
[391778145,1760800240428,-431.91018212,0.00031553,2]
[391778146,1760800240437,-166.66,0.00031554,30]
[391778147,1760800240447,-2546.0,0.00031566,2]
[391778148,1760800240456,-902.0,0.00031566,2]
[391778149,1760800240466,-1028.471,0.00031566,2]
[391778150,1760800240475,-2337.01,0.0003157,2]
[391778151,1760800240484,-500.0,0.0003157,2]
[391778152,1760800240493,-500.0,0.0003157,2]
[391778153,1760800240502,-500.0,0.00031571,2]
[391778154,1760800240511,-130.54362047,0.00031571,2]
[391778155,1760800240522,-369.45637953,0.00031571,2]
[391778156,1760800240532,-500.0,0.00031571,2]
[391778157,1760800240540,-500.0,0.00031571,2]
[391778158,1760800240549,-635.34325975,0.00031571,2]
[391778159,1760800240559,-500.0,0.00031571,2]
[391778160,1760800240568,-500.0,0.00031671,2]
[391778161,1760800240577,-500.0,0.00031671,2]
[391778162,1760800240586,-500.0,0.00031671,2]
[391778163,1760800240595,-628.77,0.00031671,2]
[391778164,1760800240604,-500.0,0.00031671,2]
[391778165,1760800240613,-540.7,0.00031671,2]
[391778166,1760800240629,-500.0,0.00031671,2]
[391778167,1760800240644,-500.0,0.00031671,2]
[391778168,1760800240653,-4472.62,0.00031671,2]
[391778169,1760800240662,-500.0,0.00031671,2]
[391778170,1760800240671,-155.09375086,0.00031671,2]
[391778171,1760800240680,-431.91018212,0.00031736,2]
[391778172,1760800240690,-1000.0,0.000318,2]
[391778173,1760800240699,-575.0,0.000318,2]
[391778174,1760800240708,-1000.0,0.00031808,7]
[391778175,1760800240717,-500.0,0.00031808,7]
[391778176,1760800240726,-2337.01,0.00031844,2]
[391778177,1760800240735,-500.0,0.00031844,2]
[391778178,1760800240744,-475.87519986,0.00031844,2]
[391778179,1760800240783,-24.12480014,0.00031844,2]
[391778180,1760800240795,-500.0,0.00031845,2]
[391778181,1760800240805,-500.0,0.00031845,2]
[391778182,1760800240815,-500.0,0.00031845,2]
[391778183,1760800240827,-500.0,0.00031845,2]
[391778184,1760800240836,-500.0,0.00031845,2]
[391778185,1760800240846,-150.0,0.00031863,2]
[391778186,1760800240855,-431.91018212,0.00031918,2]
[391778187,1760800240865,-500.0,0.00031945,2]
[391778188,1760800240875,-500.0,0.00031945,2]
[391778189,1760800240885,-500.0,0.00031945,2]
[391778190,1760800240894,-628.77,0.00031945,2]
[391778191,1760800240904,-500.0,0.00031945,2]
[391778192,1760800240914,-540.7,0.00031945,2]
[391778193,1760800240925,-500.0,0.00031945,2]
[391778194,1760800240934,-500.0,0.00031945,2]
[391778195,1760800240943,-4472.62,0.00031945,2]
[391778196,1760800240953,-500.0,0.00031945,2]
[391778197,1760800240963,-184.05533709,0.00031968,2]
[391778198,1760800240972,-4258.01604272,0.0003198,2]
[391778199,1760800240981,-500.0,0.00031999,2]
[391778200,1760800240991,-4258.01604266,0.00032034,2]
[391778201,1760800241001,-2590.0,0.00032068,2]
[391778202,1760800241010,-6437.0,0.00032068,2]
[391778203,1760800241020,-557.0,0.00032068,2]
[391778204,1760800241030,-168.0,0.00032068,2]
[391778205,1760800241039,-168.0,0.00032073,2]
[391778206,1760800241049,-500.0,0.00032079,2]
[391778207,1760800241058,-500.0,0.00032079,2]
[391778208,1760800241067,-500.0,0.00032079,2]
[391778209,1760800241077,-500.0,0.00032079,2]
[391778210,1760800241086,-500.0,0.00032079,2]
[391778211,1760800241095,-500.0,0.00032079,2]
[391778212,1760800241104,-500.0,0.00032079,2]
[391778213,1760800241113,-500.0,0.00032079,2]
[391778214,1760800241122,-500.0,0.00032079,2]
[391778215,1760800241132,-500.0,0.00032079,2]
[391778216,1760800241141,-500.0,0.00032079,2]
[391778217,1760800241151,-1793.38,0.00032079,2]
[391778218,1760800241161,-500.0,0.00032079,2]
[391778219,1760800241170,-500.0,0.00032079,2]
[391778220,1760800241180,-562.66,0.00032079,2]
[391778221,1760800241190,-500.0,0.00032079,2]
[391778222,1760800241199,-73.45992494,0.00032079,2]
[391778223,1760800241310,-426.54007506,0.00032079,2]
[391778224,1760800241320,-500.0,0.00032079,2]
[391778225,1760800241330,-500.0,0.00032079,2]
[391778226,1760800241339,-500.0,0.00032079,2]
[391778227,1760800241348,-170.96978582,0.00032079,2]
[391778228,1760800241358,-500.0,0.00032079,2]
[391778229,1760800241368,-269.37625189,0.00032079,2]
[391778230,1760800241377,-500.0,0.00032079,2]
[391778231,1760800241387,-500.0,0.00032079,2]
[391778232,1760800241396,-500.0,0.00032079,2]
[391778233,1760800241405,-500.0,0.00032079,2]
[391778234,1760800241414,-500.0,0.00032079,2]
[391778235,1760800241423,-500.0,0.00032079,2]
[391778236,1760800241434,-251.20622799,0.00032079,2]
[391778237,1760800241444,-500.0,0.00032079,2]
[391778238,1760800241454,-500.0,0.00032079,2]
[391778239,1760800241463,-285.97398436,0.00032079,2]
[391778240,1760800241473,-181.8735517,0.00032079,2]
[391778241,1760800241483,-172.6754106,0.00032079,2]
[391778242,1760800241492,-500.0,0.00032079,2]
[391778243,1760800241500,-500.0,0.00032079,2]
[391778244,1760800241510,-500.0,0.00032079,2]
[391778245,1760800241519,-718.62,0.00032079,2]
[391778246,1760800241528,-500.0,0.00032079,2]
[391778247,1760800241539,-500.0,0.00032079,2]
[391778248,1760800241548,-838.03,0.00032079,2]
[391778249,1760800241557,-500.0,0.00032079,2]
[391778250,1760800241566,-500.0,0.00032079,2]
[391778251,1760800241575,-500.0,0.00032079,2]
[391778252,1760800241584,-500.0,0.00032079,2]
[391778253,1760800241593,-500.0,0.00032079,2]
[391778254,1760800241603,-14124.16952271,0.0003208,2]
[391778255,1760800241614,-3048.25386315,0.0003208,2]
[391778256,1760800241630,-6605.54692385,0.0003208,2]
[391778257,1760800241640,-1454.36147,0.0003208,2]
[391778258,1760800241650,-4258.01604266,0.00032088,2]
[391778259,1760800241659,-431.91018212,0.000321,2]
[391778260,1760800241668,-2337.01,0.00032118,2]
[391778261,1760800241678,-500.0,0.00032118,2]
[391778262,1760800241688,-500.0,0.00032118,2]
[391778263,1760800241697,-495.44278534,0.00032119,2]
[391778264,1760800241707,-500.0,0.00032119,2]
[391778265,1760800241716,-152.43975459,0.00032119,2]
[391778266,1760800242453,-1.6e-07,0.00032119,2]
[391778271,1760800243047,-313.62008107,0.00032119,2]
[391778272,1760800243058,-33.94016418,0.00032119,2]
[391778273,1760800243067,-500.0,0.00032119,2]
[391778274,1760800243077,-371.08392822,0.00032119,2]
[391778275,1760800243159,-128.91607178,0.00032119,2]
[391778276,1760800243169,-200.0,0.0003214,2]
[391778277,1760800243178,-3067.08392822,0.00032142,2]
[391778278,1760800243271,-1190.93211444,0.00032142,2]
[391778279,1760800243281,-500.0,0.00032199,2]
[391778280,1760800243291,-168.0,0.00032218,2]
[391778281,1760800243301,-150.0,0.00032218,2]
[391778282,1760800243311,-150.0,0.00032218,2]
[391778283,1760800243321,-500.0,0.00032218,2]
[391778284,1760800243330,-500.0,0.00032218,2]
[391778285,1760800243339,-150.0,0.00032218,2]
[391778286,1760800243348,-156.21851696,0.00032218,2]
[391778287,1760800243357,-150.0,0.00032218,2]
[391778288,1760800243366,-200.0,0.00032218,2]
[391778289,1760800243375,-200.0,0.00032218,2]
[391778290,1760800243384,-200.0,0.00032218,2]
[391778291,1760800243393,-150.0,0.00032218,2]
[391778292,1760800243403,-150.0,0.00032218,2]
[391778293,1760800243412,-150.0,0.00032218,2]
[391778294,1760800243422,-500.0,0.00032219,2]
[391778295,1760800243433,-500.0,0.00032219,2]
[391778296,1760800243443,-500.0,0.00032219,2]
[391778297,1760800243452,-628.77,0.00032219,2]
[391778298,1760800243461,-500.0,0.00032219,2]
[391778299,1760800243471,-501.68787573,0.00032219,2]
[391778300,1760800243483,-39.01212427,0.00032219,2]
[391778301,1760800243493,-500.0,0.00032219,2]
[391778303,1760800243501,-500.0,0.00032219,2]
[391778304,1760800243511,-4472.62,0.00032219,2]
[391778305,1760800243520,-158.41506657,0.00032228,15]
[391778306,1760800243529,-2257.8384332,0.00032269,4]
[391778307,1760800243539,-150.0,0.00032273,2]
[391778308,1760800243548,-150.0,0.00032273,2]
[391778309,1760800243557,-500.0,0.00032273,2]
[391778310,1760800243567,-500.0,0.00032273,2]
[391778311,1760800243576,-150.0,0.00032273,2]
[391778312,1760800243585,-151.30290551,0.00032273,2]
[391778313,1760800243594,-150.0,0.00032273,2]
[391778314,1760800243603,-431.91018212,0.00032283,2]
[391778315,1760800243612,-178.52198615,0.000323,2]
[391778316,1760800243621,-5000.0,0.000323,2]
[391778317,1760800243630,-151.0,0.000323,30]
[391778318,1760800243639,-151.0,0.000323,30]
[391778319,1760800243648,-211.340203,0.000323,30]
[391778320,1760800243658,-301.99999976,0.000323,30]
[391778321,1760800243667,-1605.0,0.000323,2]
[391778322,1760800243676,-1583.81,0.00032301,120]
[391778323,1760800243685,-300.0,0.00032309,2]
[391778324,1760800243694,-150.0,0.00032318,2]
[391778325,1760800243703,-936.2574805,0.0003232,2]
[391778326,1760800243712,-9277.6771172,0.0003232,2]
[391778327,1760800243721,-150.0,0.00032328,2]
[391778328,1760800243730,-150.0,0.00032328,2]
[391778329,1760800243739,-500.0,0.00032328,2]
[391778330,1760800243748,-500.0,0.00032328,2]
[391778331,1760800243757,-150.0,0.00032328,2]
[391778332,1760800243767,-150.0,0.00032328,2]
[391778333,1760800243776,-596.81310951,0.00032353,2]
[391778334,1760800243786,-500.0,0.00032353,2]
[391778335,1760800243796,-500.0,0.00032353,2]
[391778336,1760800243806,-500.0,0.00032353,2]
[391778337,1760800243815,-63.59167104,0.00032353,2]
[391778338,1760800243827,-436.40832896,0.00032353,2]
[391778339,1760800243836,-500.0,0.00032353,2]
[391778340,1760800243845,-500.0,0.00032353,2]
[391778341,1760800243854,-500.0,0.00032353,2]
[391778342,1760800243863,-500.0,0.00032353,2]
[391778343,1760800243872,-1793.38,0.00032353,2]
[391778344,1760800243881,-500.0,0.00032353,2]
[391778345,1760800243890,-500.0,0.00032353,2]
[391778346,1760800243899,-455.76432331,0.00032353,2]
[391778347,1760800243908,-500.0,0.00032353,2]
[391778348,1760800243917,-500.0,0.00032353,2]
[391778349,1760800243927,-500.0,0.00032353,2]
[391778350,1760800243936,-354.79734773,0.00032353,2]
[391778351,1760800243951,-363.82265227,0.00032353,2]
[391778352,1760800243960,-500.0,0.00032353,2]
[391778353,1760800243972,-500.0,0.00032353,2]
[391778354,1760800243981,-838.03,0.00032353,2]
[391778355,1760800243991,-500.0,0.00032353,2]
[391778356,1760800244001,-500.0,0.00032353,2]
[391778357,1760800244010,-500.0,0.00032353,2]
[391778358,1760800244019,-500.0,0.00032353,2]
[391778359,1760800244028,-500.0,0.00032356,7]
[391778360,1760800244037,-163.9715362,0.00032369,2]
[391778361,1760800244046,-917.57581153,0.00032369,2]
[391778362,1760800244058,-421.17233387,0.00032369,2]
[391778363,1760800244067,-146.95382633,0.00032369,2]
[391778364,1760800244078,-12757.31417877,0.00032369,2]
[391778365,1760800244087,-158.6468878,0.00032373,5]
[391778366,1760800244096,-250.0,0.00032382,2]
[391778367,1760800244105,-150.0,0.00032382,2]
[391778368,1760800244114,-500.0,0.00032382,2]
[391778369,1760800244123,-500.0,0.00032382,2]
[391778370,1760800244132,-150.0,0.00032382,2]
[391778371,1760800244141,-150.0,0.00032382,2]
[391778372,1760800244150,-151.0,0.0003239,30]
[391778373,1760800244160,-230.541087,0.0003239,30]
[391778374,1760800244169,-150.27,0.0003239,2]
[391778375,1760800244178,-150.27,0.0003239,2]
[391778376,1760800244189,-150.27,0.0003239,2]
[391778377,1760800244198,-150.27,0.0003239,2]
[391778378,1760800244208,-150.27,0.0003239,2]
[391778379,1760800244218,-150.27,0.0003239,2]
[391778380,1760800244227,-150.27,0.0003239,2]
[391778381,1760800244236,-150.27,0.0003239,2]
[391778382,1760800244245,-150.27,0.0003239,2]
[391778383,1760800244254,-150.27,0.0003239,2]
[391778384,1760800244264,-150.27,0.0003239,2]
[391778385,1760800244273,-150.27,0.0003239,2]
[391778386,1760800244282,-150.27,0.0003239,2]
[391778387,1760800244291,-150.27,0.0003239,2]
[391778388,1760800244300,-150.27,0.0003239,2]
[391778389,1760800244309,-2337.01,0.00032392,2]
[391778390,1760800244319,-500.0,0.00032392,2]
[391778391,1760800244328,-178.080654,0.00032392,2]
[391778392,1760800244337,-500.0,0.00032393,2]
[391778393,1760800244346,-500.0,0.00032393,2]
[391778394,1760800244356,-500.0,0.00032393,2]
[391778395,1760800244365,-500.0,0.00032393,2]
[391778396,1760800244374,-500.0,0.00032399,2]
[391778397,1760800244383,-500.0,0.00032399,2]
[391778398,1760800244392,-500.0,0.00032399,2]
[391778399,1760800244401,-233.2,0.00032399,2]
[391778400,1760800244411,-150.0,0.00032399,2]
[391778401,1760800244419,-150.0,0.00032399,2]
[391778402,1760800244429,-590.62414403,0.00032399,2]
[391778403,1760800244439,-150.0,0.00032399,2]
[391778404,1760800244448,-1632.17344362,0.00032399,2]
[391778405,1760800244457,-500.0,0.00032399,2]
[391778406,1760800244466,-500.0,0.00032399,2]
[391778407,1760800244475,-500.0,0.00032399,2]
[391778408,1760800244485,-500.0,0.00032399,2]
[391778409,1760800244494,-500.0,0.00032399,2]
[391778410,1760800244503,-500.0,0.00032399,2]
[391778411,1760800244511,-500.0,0.00032399,2]
[391778412,1760800244520,-500.0,0.00032399,2]
[391778413,1760800244529,-500.0,0.00032399,2]
[391778414,1760800244538,-500.0,0.00032399,2]
[391778415,1760800244547,-500.0,0.00032399,2]
[391778416,1760800244556,-500.0,0.00032399,2]
[391778417,1760800244565,-500.0,0.00032399,2]
[391778418,1760800244574,-505.89501424,0.00032399,2]
[391778419,1760800244582,-500.0,0.00032399,2]
[391778420,1760800244591,-500.0,0.00032399,2]
[391778421,1760800244600,-500.0,0.00032399,2]
[391778422,1760800244609,-500.0,0.00032399,2]
[391778423,1760800244618,-500.0,0.00032399,2]
[391778424,1760800244628,-500.0,0.00032399,2]
[391778425,1760800244636,-500.0,0.00032399,2]
[391778426,1760800244646,-500.0,0.00032399,2]
[391778427,1760800244655,-500.0,0.00032399,2]
[391778428,1760800244663,-500.0,0.00032399,2]
[391778429,1760800244672,-500.0,0.00032399,2]
[391778430,1760800244681,-500.0,0.00032399,2]
[391778431,1760800244691,-500.0,0.00032399,2]
[391778432,1760800244700,-500.0,0.00032399,2]
[391778433,1760800244709,-500.0,0.00032399,2]
[391778434,1760800244719,-467.65798686,0.00032399,2]
[391778435,1760800244728,-500.0,0.00032399,2]
[391778436,1760800244738,-500.0,0.00032399,2]
[391778437,1760800244747,-443.34764141,0.00032399,2]
[391778438,1760800244756,-500.0,0.00032399,2]
[391778439,1760800244765,-500.0,0.00032399,2]
[391778440,1760800244775,-500.0,0.00032399,2]
[391778441,1760800244785,-500.0,0.00032399,2]
[391778442,1760800244797,-500.0,0.00032399,2]
[391778443,1760800244807,-500.0,0.00032399,2]
[391778444,1760800244818,-500.0,0.00032399,2]
[391778445,1760800244828,-500.0,0.00032399,2]
[391778446,1760800244838,-500.0,0.00032399,2]
[391778447,1760800244848,-999.0,0.00032399,120]
[391778448,1760800244857,-500.0,0.00032399,2]
[391778449,1760800244869,-500.0,0.00032399,2]
[391778450,1760800244879,-500.0,0.00032399,2]
[391778451,1760800244889,-500.0,0.00032399,2]
[391778452,1760800244900,-500.0,0.00032399,2]
[391778453,1760800244911,-500.0,0.00032399,2]
[391778454,1760800244923,-500.0,0.00032399,2]
[391778455,1760800244936,-500.0,0.00032399,2]
[391778456,1760800244947,-500.0,0.00032399,2]
[391778457,1760800244959,-500.0,0.00032399,2]
[391778458,1760800244970,-500.0,0.00032399,2]
[391778459,1760800244980,-500.0,0.00032399,2]
[391778460,1760800244990,-500.0,0.00032399,2]
[391778461,1760800245000,-500.0,0.00032399,2]
[391778462,1760800245011,-500.0,0.00032399,2]
[391778463,1760800245022,-500.0,0.00032399,2]
[391778464,1760800245033,-500.0,0.00032399,2]
[391778465,1760800245044,-500.0,0.00032399,2]
[391778466,1760800245055,-500.0,0.00032399,2]
[391778467,1760800245065,-500.0,0.00032399,2]
[391778468,1760800245075,-500.0,0.00032399,2]
[391778469,1760800245086,-500.0,0.00032399,2]
[391778470,1760800245097,-500.0,0.00032399,2]
[391778471,1760800245108,-500.0,0.00032399,2]
[391778472,1760800245121,-500.0,0.00032399,2]
[391778473,1760800245132,-593.83401607,0.00032399,2]
[391778474,1760800245144,-544.0,0.000324,5]
[391778475,1760800245154,-203058.10112337,0.000324,4]
[391778490,1760800246055,-1302.87663094,0.00032196,2]
[391778491,1760800246080,-477.2999985,0.00032196,2]
[391778492,1760800246092,-2477.83941322,0.00032196,2]
[391778493,1760800246103,-11925.63692228,0.000324,4]
[391778494,1760800246218,-439.46715222,0.000324,4]
[391778495,1760800246257,-20231.29091795,0.000324,4]
[391778497,1760800262067,-228.94016545,0.00018359,2]
[391778498,1760800265538,-302.29262286,0.00018359,2]
[391778499,1760800269271,-210.93421458,0.00018359,2]
[391778500,1760800270864,-363.70737714,0.00018359,2]
[391778501,1760800272531,-162.4,0.00018359,2]
[391778506,1760800397029,-172.45,0.00015656,2]
[391778507,1760800397052,-28.64553439,0.00017222,2]
[391778508,1760800426951,-200.29463106,0.00017222,2]
[391778509,1760800426976,-28.76104216,0.00018359,2]